bitfinex-derivatives/quotes_ETHF0:USTF0_20210705
["timestamp","ask_amount","ask_price","bid_price","bid_amount"]
[1625443603743,7.76304,2316.2,2315.7,3.7165482]
[1625443603845,7.76304,2316.2,2315.2,2.20527]
[1625443604504,7.76304,2316.2,2315.3,15.731383]
[1625443604855,7.76304,2316.2,2315.2,2.20527]
[1625443605054,2.20527,2315.6,2315.5,2.20527]
[1625443605258,2.20527,2315.6,2315.2,2.20527]
[1625443606156,3.20527,2315.6,2315.2,2.20527]
[1625443606656,6.17707,2315.6,2315.2,2.20527]
[1625443606808,6.17707,2315.6,2313.7,4.759]
[1625443607007,4.41054,2313.8,2313.5,5.07455969]
[1625443607118,7.45964,2313.8,2313.5,5.07455969]
[1625443607209,7.45964,2313.8,2313.0,2.20527]
[1625443609012,4.41054,2313.1,2312.7,2.20527]
[1625443610215,4.41054,2313.1,2312.8,15.748126]
[1625443611020,4.41054,2313.1,2313.0,2.20527]
[1625443611521,4.41054,2313.1,2311.2,9.81486497]
[1625443611621,6.85124,2313.1,2311.2,9.81486497]
[1625443612018,6.85124,2313.1,2311.2,5.05586497]
[1625443612220,6.85124,2313.1,2311.3,15.659754]
[1625443612620,6.85124,2313.1,2310.3,15.787862]
[1625443612819,6.85124,2313.1,2310.4,10.04987475]
[1625443613022,2.20527,2312.5,2312.4,2.20527]
[1625443613425,2.20527,2312.5,2311.1,5.0]
[1625443613525,2.20527,2312.5,2311.0,3.5495]
[1625443613925,4.82757,2312.5,2311.0,3.5495]
[1625443614026,4.82757,2312.5,2311.1,15.822817]
[1625443614427,4.82757,2312.5,2310.6,15.796134]
[1625443615076,2.20527,2311.6,2311.5,2.20527]
[1625443615577,2.20527,2311.6,2311.2,2.20527]
[1625443616077,3.7435,2313.0,2311.2,2.20527]
[1625443616178,14.5773,2314.0,2311.3,15.630043]
[1625443616588,1.0,2314.4,2311.3,15.630043]
[1625443616691,3.1536,2314.8,2311.3,15.630043]
[1625443616889,0.8758,2315.3,2311.3,15.630043]
[1625443616989,13.7688,2315.4,2311.3,15.630043]
[1625443617090,2.20527,2312.5,2312.4,2.20527]
[1625443617292,2.20527,2312.5,2311.3,15.630043]
[1625443617393,2.20527,2312.5,2310.6,4.759]
[1625443617492,2.20527,2312.5,2311.8,51.4429]
[1625443617702,2.20527,2312.5,2311.8,36.3209]
[1625443617793,2.20527,2312.5,2311.4,2.51]
[1625443617901,2.20527,2312.5,2311.9,15.650794]
[1625443618103,2.20527,2312.5,2311.9,14.440794]
[1625443618202,2.20527,2312.5,2311.5,15.83205]
[1625443618408,5.39117,2312.5,2311.5,15.83205]
[1625443618503,5.39117,2312.5,2309.8,5.0]
[1625443618911,5.39117,2312.5,2309.8,5.8654]
[1625443619111,2.20527,2311.1,2310.6,2.20527]
[1625443619212,4.87117,2311.1,2310.6,2.20527]
[1625443619412,4.87117,2311.1,2310.7,15.774003]
[1625443621169,2.20527,2310.8,2310.7,15.774003]
[1625443621569,2.20527,2310.8,2308.5,1.0]
[1625443621669,2.20527,2310.8,2308.4,14.4559]
[1625443622171,2.20527,2310.8,2308.5,15.602061]
[1625443623127,2.20527,2309.5,2309.4,2.20527]
[1625443623431,2.20527,2309.5,2309.4,18.01568]
[1625443624579,7e-05,2309.5,2309.4,18.01568]
[1625443627546,3.5646,2311.4,2309.4,18.01568]
[1625443627647,2.5221,2311.9,2309.4,18.01568]
[1625443627748,2.5221,2311.9,2309.4,20.66568]
[1625443627999,2.5221,2311.9,2309.4,67.04988]
[1625443628752,1.1,2312.4,2309.5,5.0]
[1625443628854,46.0225,2312.9,2309.5,5.0]
[1625443628954,15.0513,2313.0,2309.5,5.0]
[1625443629054,15.0513,2313.0,2309.6,15.713161]
[1625443629263,2.20527,2312.2,2312.1,2.20527]
[1625443629365,15.0513,2313.0,2312.1,5.31427]
[1625443629564,1.24662893,2317.4,2312.1,5.31427]
[1625443629663,1.67798298,2317.6,2312.1,5.31427]
[1625443629764,5.0,2315.1,2312.1,5.31427]
[1625443629865,0.23482027,2314.5,2312.1,5.31427]
[1625443629963,1.1,2314.4,2312.1,5.31427]
[1625443630364,1.1,2314.4,2312.1,3.109]
[1625443630465,1.1,2314.4,2310.3,1.0]
[1625443630567,1.0,2314.3,2310.2,13.8085]
[1625443630665,1.1,2314.2,2310.2,13.8085]
[1625443630765,1.0,2314.2,2310.2,13.8085]
[1625443630866,4.371,2314.1,2310.2,13.8085]
[1625443630967,5.371,2314.1,2310.2,13.8085]
[1625443631167,2.20527,2311.8,2311.7,2.20527]
[1625443631766,2.20527,2311.8,2310.2,13.8085]
[1625443632069,2.20527,2311.8,2309.4,7.65]
[1625443632168,2.20527,2311.8,2309.4,5.0]
[1625443632365,2.20527,2311.8,2310.1,15.660237]
[1625443632466,2.20527,2311.8,2310.1,19.273337]
[1625443633167,2.20527,2311.1,2310.6,2.20527]
[1625443635185,2.20527,2310.7,2310.6,2.20527]
[1625443637387,2.20527,2310.7,2308.4,6.0]
[1625443637487,2.20527,2310.7,2308.4,5.0]
[1625443637993,2.20527,2310.7,2309.9,15.797209]
[1625443638142,2.20527,2310.7,2309.9,19.082309]
[1625443639297,2.20527,2310.3,2309.9,21.287579]
[1625443639898,2.20527,2310.7,2309.9,21.287579]
[1625443640203,2.20527,2310.7,2309.9,26.287579]
[1625443641103,2.20527,2310.7,2309.9,26.337579]
[1625443641203,2.20527,2310.7,2310.5,2.20527]
[1625443641505,2.20527,2310.7,2310.6,15.576367]
[1625443642005,2.20527,2310.7,2310.5,2.20527]
[1625443642307,2.20527,2310.7,2309.9,2.20527]
[1625443642965,2.20527,2310.7,2310.0,15.644163]
[1625443643266,4.41054,2310.1,2310.0,15.644163]
[1625443643467,4.41054,2310.1,2309.9,2.20527]
[1625443645620,2.20527,2310.1,2309.9,2.20527]
[1625443647327,2.20527,2310.0,2309.9,2.20527]
[1625443647626,1.0,2311.3,2309.9,2.20527]
[1625443647728,37.6114,2317.2,2309.9,5.58447]
[1625443647829,1.0,2313.2,2309.9,5.58447]
[1625443647930,1.0,2313.2,2309.9,6.58447]
[1625443648180,6.0,2313.2,2310.0,15.763995]
[1625443648640,6.0,2313.2,2309.9,5.58447]
[1625443648748,1.1,2312.9,2309.9,5.58447]
[1625443648852,1.0,2312.8,2309.9,5.58447]
[1625443648946,1.1,2312.7,2309.9,5.58447]
[1625443649049,1.0,2312.6,2309.9,5.58447]
[1625443649146,1.1,2312.5,2309.9,5.58447]
[1625443649246,2.1,2312.5,2309.9,5.58447]
[1625443649346,4.41054,2310.0,2309.9,5.58447]
[1625443649657,2.20527,2310.0,2309.9,5.58447]
[1625443650057,2.20527,2310.0,2309.9,21.376094]
[1625443650506,2.1,2311.6,2309.9,21.376094]
[1625443650607,1.1,2311.6,2309.9,21.376094]
[1625443651309,4.41054,2310.0,2309.9,21.376094]
[1625443651970,4.41054,2310.0,2309.9,5.58447]
[1625443652067,4.41054,2310.0,2309.9,2.20527]
[1625443652868,4.41054,2310.0,2309.9,17.904786]
[1625443654024,4.41054,2310.0,2309.9,2.20527]
[1625443656277,4.41054,2310.0,2309.9,17.791054]
[1625443656577,4.41054,2310.0,2309.9,2.20527]
[1625443657729,4.41054,2310.0,2309.9,17.85577]
[1625443658280,4.41054,2310.0,2309.9,15.6505]
[1625443658380,4.41054,2310.0,2308.4,1.0]
[1625443658480,4.41054,2310.0,2308.3,14.9025]
[1625443659035,4.41054,2310.0,2308.3,19.9025]
[1625443659233,2.20527,2310.0,2308.3,19.9025]
[1625443659334,2.20527,2310.0,2309.9,2.20527]
[1625443659434,2.20527,2310.0,2309.9,5.48237]
[1625443659833,2.20527,2310.0,2309.9,21.144763]
[1625443660637,2.20527,2310.3,2309.9,21.144763]
[1625443660837,2.1,2311.4,2309.9,21.144763]
[1625443660937,1.1,2311.4,2309.9,21.144763]
[1625443661239,1.1,2311.4,2309.9,18.939493]
[1625443661342,2.20527,2310.1,2309.9,18.939493]
[1625443661440,2.20527,2310.1,2309.9,3.2771]
[1625443661989,2.20527,2310.1,2309.5,2.20527]
[1625443663347,2.20527,2310.0,2309.9,2.20527]
[1625443664683,1.1,2310.8,2309.9,2.20527]
[1625443664773,1.0,2312.2,2309.9,2.20527]
[1625443664871,1.1,2311.3,2309.9,2.20527]
[1625443665320,1.1,2311.3,2310.0,15.832185]
[1625443665428,2.20527,2310.2,2310.0,15.832185]
[1625443665622,2.20527,2310.2,2309.9,2.20527]
[1625443665923,2.20527,2310.2,2310.0,15.677535]
[1625443666127,3.08317,2310.2,2310.0,15.677535]
[1625443666325,2.20527,2310.2,2310.0,15.677535]
[1625443666426,2.20527,2310.2,2309.9,2.20527]
[1625443667126,5.37787,2310.2,2309.9,2.20527]
[1625443667429,2.20527,2310.0,2309.9,2.20527]
[1625443667528,2.20527,2310.0,2309.8,13.8073]
[1625443673342,5.21667,2310.0,2309.8,13.8073]
[1625443673643,5.21667,2310.0,2309.0,2.20527]
[1625443673744,47.8613,2309.2,2307.1,1.0]
[1625443673845,50.9681,2309.2,2306.3,3.7]
[1625443673945,1.0,2309.1,2306.3,3.7]
[1625443674047,1.0,2309.1,2306.4,0.18207338]
[1625443674353,1.0,2309.1,2306.5,15.690391]
[1625443674448,1.0,2309.1,2306.6,3.7]
[1625443674650,1.0,2309.1,2306.7,0.18217001]
[1625443674751,14.3097,2309.9,2306.7,15.77854201]
[1625443674850,1.0,2309.8,2306.8,3.88199742]
[1625443675050,1.0,2309.8,2306.9,0.18199702]
[1625443675150,1.0,2309.8,2306.9,3.95119702]
[1625443675251,1.0,2309.8,2306.9,19.75941202]
[1625443675352,1.0,2309.8,2306.9,23.45941202]
[1625443675452,2.20527,2308.1,2307.7,2.20527]
[1625443675751,2.20527,2308.1,2307.8,15.844699]
[1625443675953,7e-05,2308.1,2307.8,15.844699]
[1625443676053,2.20527,2308.4,2307.8,19.357599]
[1625443676359,1.1,2309.3,2307.8,19.357599]
[1625443676360,4.759,2314.7,2307.8,19.357599]
[1625443676460,1.1,2309.5,2307.8,19.357599]
[1625443676565,0.8618,2311.1,2307.8,19.357599]
[1625443676866,0.8618,2311.1,2307.9,0.18205527]
[1625443677168,0.8618,2311.1,2308.0,15.807126]
[1625443677469,2.20527,2309.6,2309.1,2.20527]
[1625443677570,2.20527,2309.6,2309.1,5.13007]
[1625443678622,1.1,2310.8,2309.1,5.13007]
[1625443678854,1.0,2311.0,2309.1,5.13007]
[1625443678944,0.8618,2311.1,2309.2,5.0]
[1625443679039,3.8326877,2315.5,2309.2,5.0]
[1625443679137,3.8326877,2315.5,2309.5,46.3917]
[1625443679438,5.8663,2312.5,2309.3,16.827578]
[1625443679538,2.20527,2310.9,2310.8,2.20527]
[1625443680992,1.0,2312.4,2310.8,2.20527]
[1625443681089,0.8663,2312.5,2310.8,5.00827]
[1625443681190,1.0,2312.8,2310.8,5.00827]
[1625443681294,14.1465,2312.9,2310.8,5.00827]
[1625443681390,14.1465,2312.9,2310.9,15.596084]
[1625443681490,2.20527,2311.2,2311.1,2.20527]
[1625443681889,2.20527,2311.2,2311.1,17.79527]
[1625443682193,2.20527,2311.2,2311.1,2.20527]
[1625443682290,1.0,2312.8,2311.1,2.20527]
[1625443682442,14.1465,2312.9,2311.1,2.20527]
[1625443682539,14.1465,2312.9,2311.1,17.991388]
[1625443683140,14.1465,2312.9,2311.1,2.20527]
[1625443683442,14.1465,2312.9,2310.8,2.20527]
[1625443683542,14.1465,2312.9,2310.4,2.20527]
[1625443683543,4.41054,2311.2,2310.4,2.20527]
[1625443683642,7.98664,2311.2,2310.4,2.20527]
[1625443683746,1.0,2311.1,2308.9,7.2947]
[1625443684401,1.0,2311.1,2309.0,15.638152]
[1625443685197,1.0,2311.1,2308.8,15.78848]
[1625443685505,4.41054,2308.9,2308.8,15.78848]
[1625443685621,4.41054,2308.9,2307.7,2.20527]
[1625443685622,5.41054,2308.9,2307.7,2.20527]
[1625443685697,5.41054,2308.9,2306.9,6.986]
[1625443685800,5.41054,2308.9,2305.9,4.759]
[1625443685898,5.41054,2308.9,2306.0,0.18120936]
[1625443686348,5.41054,2308.9,2306.1,15.78883]
[1625443686449,5.41054,2308.9,2306.2,14.21]
[1625443686750,5.41054,2308.9,2306.3,15.86132194]
[1625443686949,5.41054,2308.9,2306.4,0.18123839]
[1625443687251,5.41054,2308.9,2306.5,15.651299]
[1625443687549,2.20527,2307.1,2307.0,2.20527]
[1625443687750,1.0,2308.9,2307.0,2.38654211]
[1625443687852,1.0,2308.9,2307.1,15.801205]
[1625443687952,1.0,2308.9,2307.1,15.98247405]
[1625443688151,1.0,2308.9,2307.2,0.18111259]
[1625443688452,1.0,2308.9,2307.2,15.835101]
[1625443688551,1.0,2308.9,2307.2,18.846801]
[1625443688754,1.0,2308.9,2307.3,0.18110532]
[1625443689005,1.0,2308.9,2307.3,15.92912332]
[1625443689302,1.0,2308.9,2307.4,0.1811082]
[1625443689502,2.20527,2307.9,2307.5,2.20527]
[1625443689603,2.20527,2307.9,2307.5,18.010399]
[1625443690103,7e-05,2307.9,2307.6,0.18112019]
[1625443690205,1.1,2309.6,2307.6,0.18112019]
[1625443690412,1.1,2309.6,2307.7,15.708277]
[1625443690509,1.1,2309.6,2307.7,23.012477]
[1625443690708,1.0,2309.5,2307.8,0.18108964]
[1625443690810,1.0,2309.5,2307.9,14.1427]
[1625443691010,1.0,2309.5,2307.9,29.935584]
[1625443691112,1.0,2309.5,2308.0,0.1810872]
[1625443691325,1.0,2309.5,2307.9,29.935584]
[1625443691515,1.0,2309.5,2308.8,2.20527]
[1625443691614,2.20527,2309.3,2308.8,2.20527]
[1625443691725,2.20527,2309.3,2308.8,4.79647]
[1625443691824,3.20527,2309.5,2308.9,15.666623]
[1625443691916,2.20527,2309.5,2308.9,15.666623]
[1625443692030,2.15527,2309.5,2308.9,15.666623]
[1625443693481,1.0,2309.9,2308.9,15.666623]
[1625443693582,2.20527,2309.8,2309.6,2.20527]
[1625443693681,3.20527,2309.8,2309.6,2.20527]
[1625443693985,2.20527,2309.8,2309.6,2.20527]
[1625443694284,2.20527,2309.8,2309.3,2.20527]
[1625443694583,1.0,2309.7,2309.3,2.20527]
[1625443695088,1.0,2309.7,2307.9,14.1427]
[1625443695288,1.0,2309.7,2308.0,0.1812452]
[1625443695586,2.20527,2309.1,2309.0,2.20527]
[1625443695686,3.20527,2309.1,2309.0,2.20527]
[1625443695787,6.18757,2309.1,2309.0,2.20527]
[1625443697241,5.18757,2309.1,2309.0,2.20527]
[1625443697343,2.20527,2309.1,2309.0,2.20527]
[1625443697590,4.41054,2309.1,2309.0,2.20527]
[1625443698040,2.20527,2309.1,2309.0,2.20527]
[1625443699428,1.1,2310.7,2309.0,2.20527]
[1625443699513,1.1,2310.7,2309.0,5.45707]
[1625443699596,1.0,2310.8,2309.0,5.45707]
[1625443699696,1.1,2311.4,2309.0,10.45707]
[1625443699796,3.5996,2312.5,2309.0,5.45707]
[1625443699896,3.5996,2312.5,2309.1,15.638839]
[1625443699998,2.20527,2310.6,2310.4,2.20527]
[1625443700497,2.20527,2310.6,2310.2,2.20527]
[1625443700700,1.0,2310.5,2310.2,2.20527]
[1625443701402,2.20527,2310.6,2310.2,2.20527]
[1625443701651,2.20527,2310.6,2310.5,2.20527]
[1625443702005,2.20527,2310.6,2310.5,17.878344]
[1625443703058,2.20527,2310.6,2310.5,2.20527]
[1625443703672,2.20527,2310.6,2310.5,17.941217]
[1625443704406,7e-05,2310.6,2310.5,17.941217]
[1625443704507,2.20527,2310.9,2310.5,17.941217]
[1625443704707,1.0,2311.8,2310.5,17.941217]
[1625443705607,2.20527,2311.5,2311.4,2.20527]
[1625443705807,1.0,2311.8,2311.4,2.20527]
[1625443705908,13.9944,2312.8,2311.5,15.796819]
[1625443706009,1.0,2312.7,2311.5,15.796819]
[1625443706208,1.0,2312.7,2311.4,2.20527]
[1625443706862,1.0,2312.7,2311.5,15.80125]
[1625443707168,1.1,2313.6,2311.5,15.80125]
[1625443707316,7.986,2313.7,2311.5,15.80125]
[1625443707417,1.0,2313.5,2311.5,15.80125]
[1625443707614,2.20527,2312.3,2312.2,2.20527]
[1625443707813,1.0,2313.5,2312.2,2.20527]
[1625443708117,1.8544,2313.5,2312.2,2.20527]
[1625443709628,2.20527,2312.9,2312.7,2.20527]
[1625443711389,1.0,2313.5,2312.7,2.20527]
[1625443711490,1.0,2313.5,2312.8,15.701648]
[1625443711591,2.20527,2313.4,2313.3,2.20527]
[1625443711692,3.20527,2313.4,2313.3,2.20527]
[1625443712547,2.20527,2313.4,2313.3,2.20527]
[1625443713046,2.20527,2313.4,2313.3,17.810843]
[1625443713149,3.2208558,2314.8,2313.3,17.810843]
[1625443713250,15.1213,2315.2,2313.3,17.810843]
[1625443713649,2.20527,2313.8,2313.3,17.810843]
[1625443713749,1.0,2313.7,2313.3,2.20527]
[1625443714305,5.57267,2313.8,2313.3,2.20527]
[1625443715005,2.20527,2313.8,2313.3,2.20527]
[1625443715605,2.20527,2313.8,2313.7,2.20527]
[1625443715706,2.20527,2313.8,2313.3,2.20527]
[1625443717712,2.20527,2313.8,2313.7,2.20527]
[1625443718260,3.20527,2313.8,2313.1,0.05]
[1625443718360,3.20527,2313.8,2312.8,15.1152]
[1625443718461,4.07527,2313.8,2312.8,15.1152]
[1625443718561,4.07527,2313.8,2312.8,4.4358]
[1625443718816,41.2789,2312.9,2310.5,15.0997]
[1625443718910,1.0,2312.8,2310.5,15.0997]
[1625443719262,1.0,2312.8,2309.7,3.29218552]
[1625443719360,1.0,2312.8,2310.3,0.05]
[1625443719461,1.0,2312.8,2310.6,15.753372]
[1625443719668,2.20527,2311.2,2311.1,2.20527]
[1625443720063,2.20527,2311.2,2310.2,0.05]
[1625443720464,2.20527,2311.2,2309.3,3.29300725]
[1625443720665,2.20527,2311.2,2310.3,15.620013]
[1625443720966,2.20527,2311.2,2309.4,15.771028]
[1625443721066,2.20527,2311.2,2309.2,36.631]
[1625443721166,2.20527,2311.2,2309.3,15.675525]
[1625443721624,2.20527,2310.6,2310.0,2.20527]
[1625443721924,2.20527,2310.6,2310.1,15.597031]
[1625443723685,2.20527,2310.6,2310.4,2.20527]
[1625443724200,2.20527,2310.6,2310.4,5.49437]
[1625443724400,2.20527,2310.6,2310.5,15.75117]
[1625443724907,2.20527,2310.6,2309.8,3.0476]
[1625443725004,2.20527,2310.6,2309.0,2.53464334]
[1625443725103,2.20527,2310.6,2309.9,0.05]
[1625443725403,2.20527,2310.6,2308.8,2.53481928]
[1625443725703,2.20527,2309.5,2309.4,2.20527]
[1625443726004,2.20527,2309.5,2309.4,17.983751]
[1625443726105,1.17960125,2309.5,2309.4,17.983751]
[1625443726406,4.5898,2311.2,2309.4,17.983751]
[1625443726906,1.0,2311.2,2309.4,17.983751]
[1625443727662,2.20527,2310.2,2309.4,17.983751]
[1625443728312,2.20527,2310.2,2309.4,15.778481]
[1625443728713,2.20527,2310.2,2309.3,15.837038]
[1625443729013,2.20527,2310.2,2309.5,15.82005]
[1625443729213,2.20527,2310.2,2309.2,0.05]
[1625443729313,2.20527,2310.2,2309.3,15.680986]
[1625443729664,2.20527,2310.2,2309.8,2.20527]
[1625443731718,2.20527,2309.9,2309.8,2.20527]
[1625443732219,2.20527,2310.2,2309.8,2.20527]
[1625443732568,2.20527,2310.2,2309.9,15.641616]
[1625443733070,42.1519,2312.9,2309.9,15.641616]
[1625443733270,1.0,2311.7,2309.9,15.641616]
[1625443733670,2.20527,2310.9,2310.8,2.20527]
[1625443733769,2.20527,2310.9,2310.8,5.11457]
[1625443733870,3.20527,2310.9,2310.8,5.11457]
[1625443734071,2.20527,2310.9,2310.8,5.11457]
[1625443734773,2.20527,2310.9,2310.8,20.889629]
[1625443735774,4.41054,2310.9,2310.8,20.889629]
[1625443735874,2.20527,2310.9,2310.8,20.889629]
[1625443736385,3.20527,2310.9,2310.8,5.11457]
[1625443736476,3.20527,2310.9,2310.8,2.20527]
[1625443736677,6.19707,2310.9,2310.8,2.20527]
[1625443737682,8.40234,2310.9,2310.8,2.20527]
[1625443738449,8.40234,2310.9,2308.7,5.0]
[1625443738793,8.40234,2310.9,2308.7,7.53454976]
[1625443738902,8.40234,2310.9,2308.7,2.53454976]
[1625443739103,8.40234,2310.9,2308.8,15.734819]
[1625443739555,8.40234,2310.9,2308.7,15.584797]
[1625443739761,2.20527,2309.4,2309.3,2.20527]
[1625443739962,1.0,2310.0,2309.3,2.20527]
[1625443740063,1.0,2310.0,2309.4,15.807198]
[1625443740365,1.0,2310.0,2309.3,17.923736]
[1625443740366,1.0,2310.0,2309.3,2.20527]
[1625443740713,1.0,2310.0,2309.4,15.648646]
[1625443741717,4.41054,2309.5,2309.4,15.648646]
[1625443742067,5.41054,2309.5,2309.4,15.648646]
[1625443742166,5.41054,2309.5,2309.3,2.20527]
[1625443742367,5.41054,2309.5,2308.6,13.9654]
[1625443742767,5.41054,2309.5,2308.6,13.9154]
[1625443743019,5.41054,2309.5,2308.7,15.621119]
[1625443743769,2.20527,2308.9,2308.7,15.621119]
[1625443744373,3.20527,2309.5,2308.7,18.331019]
[1625443745074,2.20527,2309.5,2308.7,18.331019]
[1625443745825,2.20527,2309.5,2309.4,4.41054]
[1625443746123,2.20527,2309.5,2309.4,20.141252]
[1625443746876,7e-05,2309.5,2309.4,20.141252]
[1625443746977,5.859,2312.1,2309.4,20.141252]
[1625443747178,1.0,2311.9,2309.4,20.141252]
[1625443747278,1.0,2311.7,2309.4,20.141252]
[1625443747780,2.20527,2310.9,2310.7,2.20527]
[1625443747880,1.0,2310.8,2310.7,4.92147]
[1625443748328,1.0,2310.8,2310.7,2.7162]
[1625443749082,1.0,2310.8,2309.3,3.2849]
[1625443749733,1.0,2310.8,2309.4,15.589202]
[1625443749833,2.20527,2310.3,2310.2,2.20527]
[1625443750132,2.20527,2310.3,2310.2,17.848578]
[1625443750734,1.0,2310.8,2310.2,17.848578]
[1625443750834,2.20527,2310.9,2310.2,17.848578]
[1625443750934,3.20527,2310.9,2310.2,17.848578]
[1625443751836,2.20527,2310.3,2310.2,17.848578]
[1625443751936,3.20527,2310.3,2310.2,17.848578]
[1625443752336,3.20527,2310.3,2310.2,2.20527]
[1625443753800,3.20527,2310.3,2310.0,2.20527]
[1625443754454,3.20527,2310.3,2310.1,15.788956]
[1625443754706,2.20527,2310.3,2310.1,15.788956]
[1625443755008,3.20527,2310.3,2310.1,15.788956]
[1625443756359,2.20527,2310.3,2310.1,15.788956]
[1625443757111,2.20527,2310.4,2310.1,15.788956]
[1625443757860,2.20527,2310.4,2310.3,2.20527]
[1625443758111,3.20527,2310.4,2310.3,2.20527]
[1625443759463,2.20527,2310.4,2310.3,2.20527]
[1625443759815,2.20527,2310.8,2310.3,2.20527]
[1625443760063,1.0,2310.7,2310.3,18.0042]
[1625443760370,1.0,2310.7,2310.3,2.20527]
[1625443761819,1.0,2310.7,2310.6,2.20527]
[1625443763376,1.0,2310.7,2310.6,0.69467]
[1625443763472,1.0,2310.7,2310.3,2.20527]
[1625443763572,1.0,2310.7,2309.0,13.976]
[1625443763879,2.20527,2309.7,2309.3,2.20527]
[1625443763977,3.20527,2309.7,2309.3,2.20527]
[1625443764179,3.20527,2309.7,2309.4,15.664489]
[1625443765839,2.20527,2309.7,2309.4,15.664489]
[1625443767641,1.0,2309.9,2309.4,15.664489]
[1625443767893,1.0,2309.9,2309.8,2.20527]
[1625443767994,1.0,2309.9,2309.8,5.05007]
[1625443768193,1.0,2309.9,2309.8,20.686697]
[1625443768492,1.0,2309.9,2309.8,18.481427]
[1625443769363,1.0,2309.9,2309.8,2.8448]
[1625443769464,1.0,2309.9,2309.3,2.20527]
[1625443769572,4.2716,2309.9,2309.3,2.20527]
[1625443769908,4.41054,2309.4,2309.3,2.20527]
[1625443770109,5.41054,2309.4,2309.3,2.20527]
[1625443770312,4.41054,2309.4,2309.3,2.20527]
[1625443770617,5.41054,2309.4,2309.3,2.20527]
[1625443772272,5.41054,2309.4,2308.6,13.9154]
[1625443772576,6.26654,2309.4,2308.6,13.9154]
[1625443773530,6.26654,2309.4,2308.6,13.6465]
[1625443773934,4.41054,2308.7,2308.6,13.0278]
[1625443774029,5.41054,2308.7,2308.6,8.1918]
[1625443774234,5.41054,2308.7,2308.0,2.20527]
[1625443774483,47.6679,2308.6,2308.0,2.20527]
[1625443774582,47.6679,2308.6,2307.8,2.20527]
[1625443774583,1.0,2308.5,2307.8,2.20527]
[1625443774881,1.0,2308.5,2307.2,2.53703233]
[1625443775083,1.0,2308.5,2306.8,2.53760778]
[1625443775184,1.0,2308.5,2306.9,0.18058442]
[1625443775483,1.0,2308.5,2307.0,15.854373]
[1625443775584,1.0,2308.5,2307.1,0.18058549]
[1625443775885,1.0,2308.5,2307.2,15.712628]
[1625443775985,2.20527,2307.3,2307.2,15.712628]
[1625443776085,3.20527,2307.3,2307.2,15.89301821]
[1625443776195,2.17872687,2307.3,2307.2,15.89301821]
[1625443776384,1.17872687,2307.3,2307.2,0.18039021]
[1625443776584,2.17872687,2307.3,2307.2,0.18039021]
[1625443776684,2.17872687,2307.3,2307.2,15.804755]
[1625443776885,2.17872687,2307.3,2306.7,2.53703842]
[1625443777187,7.17872687,2307.3,2306.7,2.29483842]
[1625443777287,7.17872687,2307.3,2306.7,0.52503842]
[1625443777388,48.6875,2306.8,2305.1,2.53865464]
[1625443777500,1.0,2306.7,2305.1,2.53865464]
[1625443777999,2.20527,2305.8,2305.5,2.20527]
[1625443778100,1.0,2305.7,2305.1,2.53865464]
[1625443778303,1.0,2305.7,2304.9,2.53896825]
[1625443778955,1.0,2305.7,2305.0,15.644305]
[1625443779262,1.0,2305.7,2304.5,18.15236446]
[1625443779364,1.0,2305.7,2304.5,15.617084]
[1625443779560,1.0,2305.7,2304.4,2.53530878]
[1625443779810,1.0,2305.7,2304.3,2.5354383]
[1625443779914,1.0,2305.7,2304.5,15.859997]
[1625443780010,2.20527,2304.9,2304.5,18.065267]
[1625443780111,1.0,2304.8,2304.5,18.065267]
[1625443780229,1.0,2304.8,2304.5,2.20527]
[1625443780416,1.0,2304.8,2304.6,15.667965]
[1625443780710,1.0,2304.8,2304.5,2.20527]
[1625443781616,1.0,2304.7,2304.5,2.20527]
[1625443781714,1.0,2304.7,2303.5,2.53133119]
[1625443782013,2.20527,2303.7,2303.5,2.53133119]
[1625443782115,2.20527,2303.9,2303.5,2.53133119]
[1625443782219,1.0,2304.7,2303.5,2.53133119]
[1625443782313,14.4565,2305.8,2303.6,15.878745]
[1625443782566,14.4565,2305.8,2303.7,0.17523581]
[1625443782666,1.0,2305.7,2303.7,0.17523581]
[1625443782868,1.0,2305.7,2303.8,15.677729]
[1625443782971,1.0,2305.7,2303.8,18.840929]
[1625443783269,1.0,2305.7,2303.8,3.1632]
[1625443783570,1.0,2305.7,2303.9,15.831135]
[1625443783871,14.4565,2305.8,2303.9,15.831135]
[1625443783971,2.20527,2304.9,2304.8,2.20527]
[1625443784221,2.20527,2304.9,2304.8,5.10627]
[1625443784322,49.5636,2306.8,2304.8,20.848326]
[1625443784927,1.0,2306.7,2304.8,20.848326]
[1625443786031,2.20527,2306.1,2306.0,2.20527]
[1625443786234,2.20527,2306.1,2305.7,2.20527]
[1625443788039,2.20527,2306.1,2306.0,2.20527]
[1625443788136,2.20527,2306.1,2306.0,4.51817]
[1625443788385,2.20527,2306.1,2306.0,20.373757]
[1625443788735,13.7131,2307.8,2306.0,20.373757]
[1625443788985,1.0,2307.7,2306.0,20.373757]
[1625443789986,2.20527,2307.1,2306.8,2.20527]
[1625443791089,2.20527,2307.4,2306.8,2.20527]
[1625443791190,2.20527,2307.4,2306.8,5.15337]